fUSD/lending_fUSD_20240416
["ID","MTS","AMOUNT","RATE_DAILY","PERIOD"]
[322784101,1713288451411,-814.72820881,0.00032278,30]
[322784102,1713288451433,-223.51849091,0.00032278,120]
[322784103,1713288451454,-366.35244804,0.00032278,60]
[322784104,1713288451476,-194.95673367,0.00032278,30]
[322784105,1713288451499,-163.37853767,0.00032278,120]
[322784106,1713288451524,-328.89673525,0.00032278,30]
[322784107,1713288451546,-468.9235418,0.00032278,120]
[322784108,1713288451568,-462.18605729,0.00032278,120]
[322784109,1713288451590,-337.97015149,0.00032278,120]
[322784110,1713288451611,-293.07928049,0.00032278,30]
[322784111,1713288451633,-214.11041306,0.00032278,120]
[322784112,1713288451654,-157.97926926,0.00032278,120]
[322784113,1713288451676,-177.37183003,0.00032278,120]
[322784114,1713288451698,-345.25390091,0.00032278,30]
[322784115,1713288451721,-255.12750461,0.00032278,30]
[322784116,1713288451742,-418.04545581,0.00032278,30]
[322784117,1713288451764,-224.89221638,0.00032278,120]
[322784118,1713288451791,-833.93585203,0.00032278,30]
[322784119,1713288451813,-847.77836543,0.00032278,30]
[322784120,1713288451835,-190.63011377,0.00032278,30]
[322784121,1713288451857,-275.79213225,0.00032278,120]
[322784122,1713288451880,-358.74991299,0.00032278,30]
[322784123,1713288451903,-170.4610935,0.00032278,120]
[322784124,1713288451926,-396.23284499,0.00032278,120]
[322784125,1713288451952,-272.06980107,0.00032278,120]
[322784126,1713288451975,-187.15387667,0.00032278,120]
[322784127,1713288451997,-153.19297582,0.00032278,120]
[322784128,1713288452019,-249.68754365,0.00032278,30]
[322784129,1713288452045,-223.33693332,0.00032278,120]
[322784130,1713288452067,-280.60820538,0.00032278,120]
[322784131,1713288452090,-407.24123188,0.00032278,120]
[322784132,1713288452112,-191.48528093,0.00032278,30]
[322784133,1713288452134,-248.30657177,0.00032278,120]
[322784134,1713288452155,-245.70400976,0.00032278,30]
[322784135,1713288452178,-500.0,0.00032278,120]
[322784136,1713288452201,-176.0,0.00032278,30]
[322784137,1713288452224,-168.112831,0.00032278,30]
[322784858,1713288480863,188.0,0.00032278,30]
[322784894,1713288481699,188.0,0.00032278,30]
[322784925,1713288482472,188.0,0.00032278,30]
[322784954,1713288483197,168.0,0.00032278,30]
[322785799,1713288631814,-277.8519008,0.00015555,2]
[322785800,1713288631871,-471.18669887,0.00015555,2]
[322785801,1713288631880,-1292.85833321,0.00015556,2]
[322785802,1713288631890,-173.01068153,0.00015557,2]
[322785803,1713288631899,-296.80534364,0.00015557,2]
[322785804,1713288631913,-415.1236439,0.00015557,2]
[322785805,1713288631922,-711.92898754,0.00015557,2]
[322785806,1713288631931,-2713.77999998,0.00015563,2]
[322785807,1713288631940,-150.0,0.00015581,2]
[322785808,1713288631949,-2294.16736858,0.00015582,2]
[322785810,1713288632165,-2500.0,0.00015582,2]
[322785812,1713288632175,-2619.99475009,0.00015582,2]
[322785814,1713288632186,-250.0,0.000166,2]
[322785816,1713288632196,-672.0,0.00016672,2]
[322785818,1713288632206,-1351.94,0.00016746,2]
[322785820,1713288632217,-250.84,0.00016761,2]
[322785821,1713288632226,-270.34,0.0001677,2]
[322785823,1713288632236,-257.6,0.00016841,2]
[322785824,1713288632245,-500.0,0.00016841,2]
[322785825,1713288632254,-156.62444705,0.00017008,2]
[322785826,1713288632265,-260.58309266,0.00017008,2]
[322785827,1713288632274,-155.44351897,0.00017008,2]
[322785828,1713288632284,-12751.16,0.00017031,2]
[322785829,1713288632294,-1661.66,0.00017178,2]
[322785831,1713288632303,-363.29,0.00017191,2]
[322785832,1713288632313,-161.79,0.00017289,2]
[322785833,1713288632324,-500.0,0.000173,6]
[322785834,1713288632334,-1000.0,0.000174,6]
[322785835,1713288632344,-936.0,0.000175,2]
[322785836,1713288632354,-1500.0,0.000175,6]
[322785837,1713288632363,-328.0,0.0001757,2]
[322785838,1713288632373,-1179.58,0.0001757,2]
[322785840,1713288632383,-2000.0,0.000176,6]
[322785841,1713288632394,-2500.0,0.000177,6]
[322785842,1713288632408,-3678.49118932,0.00017777,2]
[322785843,1713288632419,-2681.72902924,0.00017778,2]
[322785844,1713288632430,-7459.03459614,0.00017779,2]
[322785845,1713288632440,-40127.58343548,0.00017779,2]
[322785846,1713288632450,-263.6711,0.00017779,2]
[322785847,1713288632460,-3335.1699,0.00017779,2]
[322785848,1713288632471,-500.0,0.000178,6]
[322785849,1713288632481,-166.4434464,0.00017899,2]
[322785850,1713288632491,-1854.67207171,0.00017899,2]
[322785851,1713288632501,-797.64915032,0.00017899,2]
[322785852,1713288632511,-500.0,0.000179,6]
[322785853,1713288632522,-1000.0,0.000179,2]
[322785854,1713288632532,-797.64915028,0.00017911,2]
[322785855,1713288632542,-166.44344639,0.0001792,2]
[322785856,1713288632552,-797.64915028,0.00017923,2]
[322785857,1713288632562,-797.64915028,0.00017935,2]
[322785858,1713288632572,-166.44344639,0.00017941,2]
[322785859,1713288632582,-166.44344639,0.00017962,2]
[322785860,1713288632592,-166.44344639,0.00017983,2]
[322785861,1713288632603,-176.79388861,0.00017983,3]
[322785862,1713288632614,-152.53930038,0.00017983,2]
[322785863,1713288632624,-150.14,0.00017989,2]
[322785864,1713288632634,-150.14,0.00017989,2]
[322785865,1713288632643,-150.14,0.00017989,2]
[322785866,1713288632656,-150.14,0.00017989,2]
[322785867,1713288632666,-150.14,0.00017989,2]
[322785868,1713288632678,-150.14,0.00017989,2]
[322785869,1713288632689,-150.14,0.00017989,2]
[322785870,1713288632699,-150.14,0.00017989,2]
[322785871,1713288632709,-150.14,0.00017989,2]
[322785872,1713288632720,-150.14,0.00017989,2]
[322785873,1713288632730,-150.14,0.00017989,2]
[322785874,1713288632740,-150.14,0.00017989,2]
[322785875,1713288632751,-214.7972737,0.00017989,2]
[322785876,1713288632761,-150.14,0.00017989,2]
[322785877,1713288632771,-214.7972737,0.00017989,2]
[322785878,1713288632781,-150.14,0.00017989,2]
[322785879,1713288632791,-150.14,0.00017989,2]
[322785880,1713288632802,-150.14,0.00017989,2]
[322785881,1713288632813,-150.14,0.00017989,2]
[322785882,1713288632823,-214.7972737,0.0001799,2]
[322785883,1713288632832,-150.14,0.0001799,2]
[322785884,1713288632842,-150.14,0.0001799,2]
[322785885,1713288632852,-150.14,0.0001799,2]
[322785886,1713288632863,-150.14,0.0001799,2]
[322785887,1713288632873,-150.14,0.0001799,2]
[322785888,1713288632883,-150.14,0.0001799,2]
[322785889,1713288632892,-150.14,0.0001799,2]
[322785890,1713288632906,-150.14,0.0001799,2]
[322785891,1713288632915,-150.14,0.0001799,2]
[322785892,1713288632925,-150.14,0.0001799,2]
[322785893,1713288632934,-150.14,0.0001799,2]
[322785894,1713288632944,-150.14,0.0001799,2]
[322785895,1713288632953,-150.14,0.0001799,2]
[322785896,1713288632962,-150.14,0.0001799,2]
[322785897,1713288632972,-150.14,0.0001799,2]
[322785898,1713288632983,-150.14,0.0001799,2]
[322785899,1713288632993,-150.14,0.0001799,2]
[322785900,1713288633004,-150.14,0.0001799,2]
[322785901,1713288633018,-150.14,0.0001799,2]
[322785902,1713288633029,-150.14,0.0001799,2]
[322785903,1713288633039,-150.14,0.0001799,2]
[322785904,1713288633051,-150.14,0.0001799,2]
[322785905,1713288633062,-150.14,0.0001799,2]
[322785906,1713288633072,-150.14,0.0001799,2]
[322785907,1713288633083,-150.14,0.0001799,2]
[322785908,1713288633093,-150.14,0.0001799,2]
[322785909,1713288633104,-150.14,0.0001799,2]
[322785910,1713288633114,-150.14,0.0001799,2]
[322785911,1713288633125,-150.14,0.0001799,2]
[322785912,1713288633136,-150.14,0.0001799,2]
[322785913,1713288633145,-150.14,0.0001799,2]
[322785914,1713288633159,-150.14,0.0001799,2]
[322785915,1713288633169,-150.14,0.0001799,2]
[322785916,1713288633180,-150.14,0.0001799,2]
[322785917,1713288633190,-150.14,0.0001799,2]
[322785918,1713288633201,-150.14,0.0001799,2]
[322785919,1713288633211,-150.14,0.0001799,2]
[322785920,1713288633221,-150.14,0.0001799,2]
[322785921,1713288633230,-150.14,0.0001799,2]
[322785922,1713288633240,-150.14,0.0001799,2]
[322785923,1713288633249,-150.14,0.0001799,2]
[322785924,1713288633259,-150.14,0.0001799,2]
[322785925,1713288633270,-150.14,0.0001799,2]
[322785926,1713288633280,-150.14,0.0001799,2]
[322785927,1713288633291,-150.14,0.0001799,2]
[322785928,1713288633301,-150.14,0.0001799,2]
[322785929,1713288633312,-150.14,0.0001799,2]
[322785930,1713288633321,-150.14,0.0001799,2]
[322785931,1713288633331,-19126.6384813,0.00017999,2]
[322786005,1713288638014,-318.06724617,0.00017947,2]
[322786014,1713288640859,-479.58190411,0.00017947,2]
[322786015,1713288640869,-502.07533675,0.00017959,2]
[322786016,1713288640881,-295.57381353,0.00017959,2]
[322786017,1713288640891,-150.14,0.0001799,2]
[322786018,1713288640900,-14.91118646,0.0001799,2]
[322786019,1713288640916,-135.22881354,0.0001799,2]
[322786020,1713288640926,-150.14,0.0001799,2]
[322786021,1713288640935,-150.14,0.0001799,2]
[322786023,1713288640945,-150.14,0.0001799,2]
[322786024,1713288640954,-150.14,0.0001799,2]
[322786026,1713288640964,-150.14,0.0001799,2]
[322786027,1713288640973,-150.14,0.0001799,2]
[322786028,1713288640982,-35.77922787,0.0001799,2]
[322786030,1713288640994,-114.36077213,0.0001799,2]
[322786031,1713288641005,-150.14,0.0001799,2]
[322786033,1713288641017,-150.14,0.0001799,2]
[322786034,1713288641026,-54.03915739,0.0001799,2]
[322786035,1713288641038,-96.10084261,0.0001799,2]
[322786037,1713288641047,-150.14,0.0001799,2]
[322786038,1713288641056,-150.14,0.0001799,2]
[322786039,1713288641066,-150.14,0.0001799,2]
[322786040,1713288641075,-150.14,0.0001799,2]
[322786041,1713288641085,-150.14,0.0001799,2]
[322786042,1713288641094,-150.14,0.0001799,2]
[322786043,1713288641104,-150.14,0.0001799,2]
[322786044,1713288641113,-6.83506923,0.0001799,2]
[322786045,1713288641124,-143.30493077,0.0001799,2]
[322786046,1713288641133,-150.14,0.0001799,2]
[322786048,1713288641143,-150.14,0.0001799,2]
[322786049,1713288641152,-150.14,0.0001799,2]
[322786051,1713288641165,-150.14,0.0001799,2]
[322786052,1713288641174,-150.14,0.0001799,2]
[322786053,1713288641183,-150.14,0.0001799,2]
[322786054,1713288641193,-150.14,0.0001799,2]
[322786055,1713288641202,-150.14,0.0001799,2]
[322786056,1713288641211,-150.14,0.0001799,2]
[322786057,1713288641220,-150.14,0.0001799,2]
[322786058,1713288641230,-150.14,0.0001799,2]
[322786059,1713288641239,-150.14,0.0001799,2]
[322786060,1713288641248,-150.14,0.0001799,2]
[322786061,1713288641258,-150.14,0.0001799,2]
[322786062,1713288641267,-150.14,0.0001799,2]
[322786063,1713288641276,-150.14,0.0001799,2]
[322786064,1713288641285,-150.14,0.0001799,2]
[322786065,1713288641294,-150.14,0.0001799,2]
[322786066,1713288641304,-150.14,0.0001799,2]
[322786067,1713288641313,-150.14,0.0001799,2]
[322786068,1713288641322,-150.14,0.0001799,2]
[322786069,1713288641331,-6374.1799871,0.00017999,2]
[322786213,1713288643104,-797.64915028,0.00017971,2]
[322786215,1713288643113,-307.81760399,0.00017999,2]
[322786216,1713288643125,-550.27606676,0.00017999,2]
[322786239,1713288643785,-3340.7815549,0.00017999,2]
[322786245,1713288646120,-1567.88321498,0.00017979,4]
[322786246,1713288646129,-4454.397844,0.00017999,2]
[322786247,1713288646182,-337.25741213,0.00017999,2]
[322786248,1713288753477,500.0,0.00032278,30]
[322786249,1713288753893,500.0,0.00032278,30]
[322786250,1713288846328,357.58,0.00014704,2]
[322786251,1713288897325,17826.18628787,0.00014704,2]
[322786252,1713288899134,179.5050471,0.00014704,2]
[322786253,1713288900216,408.16405937,0.00014704,2]
[322786254,1713288904245,323.45830688,0.00014704,2]
[322786255,1713288904846,1373.23431249,0.00014704,2]
[322786256,1713288906981,1992.96083559,0.00014703,2]
[322786257,1713288913929,313.3477052,0.00014704,2]
[322786258,1713288920245,393.22597003,0.00014704,2]
[322786259,1713288921152,273.98609914,0.00014704,2]
[322786260,1713288922189,1372.34155979,0.00014704,2]
[322786261,1713288950563,733.0,0.00032259,30]
[322786262,1713288952505,21278.74684576,0.00015,2]
[322786263,1713289052479,500.0,0.00032259,30]
[322786264,1713289053163,500.0,0.00032259,30]
[322786265,1713289066837,188.0,0.00032259,30]
[322786266,1713289067229,188.0,0.00032259,30]
[322786267,1713289067368,2538.98077247,0.00012,2]
[322786268,1713289085309,2538.98077247,0.00012,2]
[322786269,1713289101319,1553.40895105,0.00012,2]
[322786270,1713289142886,-749.03859967,0.00016075,2]
[322786271,1713289142909,-244.25184656,0.00016076,2]
[322786272,1713289142932,-1292.85833321,0.00016076,2]
[322786273,1713289142955,-2357.76557745,0.00016077,2]
[322786274,1713289142979,-329.0537,0.0001609,2]
[322786275,1713289143006,-2058.7788,0.00016093,2]
[322786276,1713289143029,-200.0,0.00016187,2]
[322786277,1713289143054,-14568.25314311,0.00016193,2]
[322786278,1713289148349,320.74241418,0.00012,2]
[322786279,1713289342915,339.7,0.00014837,2]
[322786280,1713289352166,237.79,0.00012929,2]
[322786281,1713289361251,500.0,0.00032283,30]
[322786282,1713289361830,500.0,0.00032283,30]
[322786283,1713289541906,204.0,0.00032283,30]
[322786284,1713289617311,166.63,0.00013699,2]
[322786285,1713289653401,764.5,0.00032283,30]
[322786286,1713289667209,188.0,0.00032283,30]
[322786305,1713289832087,-493.64174045,0.00015876,2]
[322786306,1713289832098,-473.09361357,0.00015876,2]
[322786307,1713289832107,-28.36638643,0.00015877,2]
[322786308,1713289832118,-419.67248778,0.00015877,2]
[322786309,1713289832130,-1034.735,0.00015877,2]
[322786310,1713289832142,-582.20282579,0.00015877,2]
[322786311,1713289832151,-150.0,0.00015958,2]
[322786312,1713289832160,-23900.0,0.00015959,2]
[322786313,1713289832170,-9430.40417611,0.00015977,2]
[322786314,1713289832180,-2819.78257996,0.00015978,2]
[322786315,1713289832189,-606.12,0.00016013,2]
[322786316,1713289832198,-2135.73,0.00016014,2]
[322786317,1713289832207,-250.0,0.00016126,2]
[322786318,1713289832216,-158.86,0.00016189,2]
[322786319,1713289832226,-7595.17598231,0.00016193,2]
[322786320,1713289832235,-513.08281969,0.00016197,2]
[322786321,1713289832245,-2201.79,0.00016211,2]
[322786322,1713289832254,-158.86,0.00016216,2]
[322786323,1713289832263,-537.6,0.00016219,2]
[322786324,1713289832272,-158.86,0.00016243,2]
[322786325,1713289832281,-186.47,0.00016252,2]
[322786326,1713289832290,-158.86,0.0001627,2]
[322786327,1713289832299,-186.47,0.00016297,2]
[322786328,1713289832309,-151.61319479,0.000163,2]
[322786329,1713289832319,-186.47,0.00016341,2]
[322786330,1713289832329,-186.47,0.00016386,2]
[322786331,1713289832344,-186.47,0.0001643,2]
[322786333,1713289832358,-151.04,0.00016455,2]
[322786335,1713289832368,-2508.15,0.00016455,2]
[322786337,1713289832378,-151.04,0.00016461,2]
[322786338,1713289832389,-3342.186777,0.00016463,2]
[322786339,1713289832399,-151.04,0.00016467,2]
[322786340,1713289832408,-151.04,0.00016473,2]
[322786341,1713289832420,-5587.98,0.00016473,2]
[322786342,1713289832431,-7137.15,0.00016473,2]
[322786343,1713289832442,-150.99,0.00016473,2]
[322786344,1713289832451,-499.99,0.00016473,2]
[322786345,1713289832462,-739.33,0.00016473,2]
[322786346,1713289832471,-186.47,0.00016475,2]
[322786347,1713289832481,-151.04,0.00016479,2]
[322786348,1713289832496,-151.04,0.00016485,2]
[322786349,1713289832507,-151.04,0.00016491,2]
[322786350,1713289832516,-151.04,0.00016496,2]
[322786351,1713289832527,-151.04,0.00016502,2]
[322786352,1713289832542,-151.04,0.00016508,2]
[322786353,1713289832552,-151.04,0.00016514,2]
[322786354,1713289832562,-186.47,0.00016519,2]
[322786355,1713289832572,-151.04,0.0001652,2]
[322786356,1713289832583,-151.04,0.00016526,2]
[322786357,1713289832593,-151.04,0.00016532,2]
[322786358,1713289832603,-151.04,0.00016538,2]
[322786359,1713289832613,-186.47,0.00016564,2]
[322786360,1713289832623,-186.47,0.00016609,2]
[322786361,1713289832632,-186.47,0.00016653,2]
[322786362,1713289832643,-186.47,0.00016698,2]
[322786363,1713289832654,-186.47,0.00016742,2]
[322786364,1713289832663,-500.0,0.00016755,2]
[322786365,1713289832673,-1398.66,0.00016755,2]
[322786366,1713289832683,-167.85,0.00016756,2]
[322786367,1713289832694,-186.47,0.00016787,2]
[322786368,1713289832704,-186.47,0.00016831,2]
[322786369,1713289832714,-186.47,0.00016876,2]
[322786370,1713289832724,-1386.45,0.00016889,2]
[322786371,1713289832734,-186.47,0.00016921,2]
[322786372,1713289832748,-186.47,0.00016965,2]
[322786373,1713289832758,-186.47,0.0001701,2]
[322786374,1713289832767,-186.47,0.00017054,2]
[322786375,1713289832779,-565.98969823,0.00017097,2]
[322786376,1713289832790,-186.47,0.00017099,2]
[322786377,1713289832799,-339.7,0.00017101,2]
[322786378,1713289832809,-4236.34109218,0.00017346,2]
[322786379,1713289832836,-312.6556575,0.00017346,2]
[322786380,1713289832866,-359.35783146,0.00017346,2]
[322786381,1713289832876,-4908.35458114,0.00017351,2]
[322786382,1713289832885,-4908.35458114,0.00017352,2]
[322786383,1713289832896,-4908.35458114,0.00017357,2]
[322786384,1713289832906,-4908.35458114,0.00017359,2]
[322786385,1713289832917,-4908.35458114,0.0001737,2]
[322786386,1713289832926,-231.34,0.00017379,2]
[322786387,1713289832937,-4908.35458114,0.00017385,2]
[322786388,1713289832947,-4908.35458114,0.00017386,2]
[322786389,1713289832958,-4908.35458114,0.00017396,2]
[322786390,1713289832968,-210.0,0.00017554,2]
[322786391,1713289832977,-162.41,0.00017582,2]
[322786392,1713289832988,-462.4,0.00017582,2]
[322786393,1713289832998,-520.9036,0.00017799,2]
[322786394,1713289833009,-7019.8371,0.00017799,2]
[322786395,1713289833020,-251.36502565,0.00017817,2]
[322786396,1713289833029,-3974.64404476,0.0001788,2]
[322786397,1713289833040,-5303.34841783,0.0001788,2]
[322786398,1713289833049,-1097.4114,0.00017897,2]
[322786399,1713289833059,-533.6087,0.00017899,2]
[322786400,1713289833069,-1485.5379,0.00017899,2]
[322786401,1713289833079,-500.0,0.00017899,2]
[322786402,1713289833091,-7500.0,0.00017899,2]
[322786403,1713289833101,-4378.38106287,0.00017899,2]
[322786404,1713289833111,-164.96741637,0.00017899,2]
[322786405,1713289833120,-165.89368198,0.00017899,2]
[322786406,1713289833129,-173.52919186,0.00017899,2]
[322786407,1713289833139,-197.15179241,0.00017899,2]
[322786408,1713289833149,-165.89368198,0.00017899,2]
[322786409,1713289833158,-164.96741634,0.00017899,2]
[322786410,1713289833168,-165.89368198,0.00017899,2]
[322786411,1713289833178,-165.89368198,0.000179,2]
[322786412,1713289833188,-164.96741634,0.000179,2]
[322786413,1713289833202,-165.89368198,0.000179,2]
[322786414,1713289833212,-165.89368198,0.000179,2]
[322786415,1713289833223,-164.96741634,0.000179,2]
[322786416,1713289833232,-5800.0,0.000179,2]
[322786417,1713289833246,-165.89368198,0.000179,2]
[322786418,1713289833256,-1882.62046221,0.000179,2]
[322786419,1713289833265,-1098.31394674,0.000179,2]
[322786420,1713289833275,-169.97,0.0001795,2]
[322786421,1713289833284,-863.29574,0.0001795,2]
[322786422,1713289833298,-345.38760674,0.00017989,2]
[322786423,1713289833309,-345.38760674,0.00017989,2]
[322786424,1713289833319,-219.97,0.00017989,2]
[322786425,1713289833328,-345.38760674,0.0001799,2]
[322786426,1713289833340,-219.97,0.0001799,2]
[322786427,1713289833349,-159.28453069,0.00017997,2]
[322786428,1713289833359,-1584.38796383,0.00017997,2]
[322786429,1713289833369,-583.64897516,0.00017997,2]
[322786430,1713289833379,-780.34286168,0.00017997,2]
[322786431,1713289833390,-196.85723822,0.00017997,2]
[322786432,1713289833399,-10549.06282293,0.00017997,2]
[322786433,1713289833410,-2211.61171423,0.00017997,2]
[322786434,1713289833421,-155.0,0.00017997,2]
[322786435,1713289833431,-260.47354147,0.00017997,2]
[322786436,1713289833441,-3770.46184272,0.00017997,2]
[322786437,1713289833451,-598.95650689,0.00017997,2]
[322786438,1713289833461,-155.0,0.00017997,2]
[322786439,1713289833470,-195.0532249,0.00017997,2]
[322786440,1713289833480,-1300.8550977,0.00017997,2]
[322786441,1713289833493,-1353.04721009,0.00017997,2]
[322786442,1713289833502,-236.43431949,0.00017997,2]
[322786443,1713289833512,-683.27995213,0.00017997,2]
[322786444,1713289833521,-1207.80967431,0.00017997,2]
[322786445,1713289833530,-155.0,0.00017997,2]
[322786446,1713289833540,-14890.27665995,0.00017998,2]
[322786447,1713289833548,-187518.46705655,0.00017999,2]
[322786448,1713289833561,-21584.95682334,0.00017999,2]
[322786449,1713289833599,-824.81260088,0.00017999,2]
[322786486,1713289838008,-349.57484014,0.00015875,2]
[322786487,1713289838121,-1415.96515986,0.00015875,2]
[322786488,1713289838131,-802.19294814,0.00017999,2]
[322786489,1713289838182,-314.855,0.00017999,2]
[322786490,1713289838239,-184667.0,0.00017999,2]
[322786493,1713289839994,-274.16751873,0.00017999,2]
[322786503,1713289840642,-456.00712,0.00017999,2]
[322786504,1713289840656,-260.0,0.00017999,2]
[322786505,1713289840669,-748.05579,0.00017999,2]
[322786506,1713289840682,-339.66201722,0.00017999,2]
[322786507,1713289840694,-1149.42897912,0.00017999,2]
[322786508,1713289840899,-34081.57296553,0.00017999,2]
[322786509,1713289840910,-33239.49600001,0.00017999,2]
[322786510,1713289840922,-3463.1511967,0.00017999,2]
[322786511,1713289840934,-4867.13013519,0.00017999,2]
[322786512,1713289840946,-350.2695717,0.00017999,2]
[322786513,1713289840957,-76459.99974836,0.00017999,2]
[322786553,1713289843152,-7435.73410439,0.00017999,2]
[322786607,1713289843832,-628.4641526,0.00017999,2]
[322786612,1713289843866,-2901.3502107,0.00017999,2]
[322786614,1713289843878,-7485.0,0.00017999,2]
[322786616,1713289843889,-3817.7030832,0.00017999,2]
[322786619,1713289843900,-1392.98874007,0.00017999,2]
[322786624,1713289843943,-10043.06090356,0.00017999,2]
[322786626,1713289843954,-565830.00000054,0.00017999,2]
[322786630,1713289845973,-339.65,0.00015719,2]
[322786631,1713289845983,-339.65,0.00017983,2]
[322786632,1713289845992,-51578.82935704,0.00017999,2]
[322786633,1713289846725,-19.54527739,0.00017999,2]
[322786634,1713289846741,-31500.0,0.00017999,2]
[322786635,1713289846756,-12337.35648721,0.00017999,2]
[322786636,1713289846769,-385126.67789882,0.00017999,2]
[322786637,1713289846778,-58572.49198183,0.00017999,4]
[322786638,1713289846787,-124464.6080527,0.00018,2]
[322786639,1713289846806,-983.86902031,0.00018,2]
[322786640,1713289846816,-276.96701666,0.00018,2]
[322786641,1713289846827,-6887.9,0.00018,2]
[322786642,1713289847026,-2660.0,0.000175,2]
[322786643,1713289847035,-83062.27047214,0.00018,2]
[322786644,1713289847051,-897.58999998,0.00018,2]
[322786645,1713289847062,-188248.20534,0.00018,2]
[322786646,1713289877753,500.0,0.00032284,30]
[322786647,1713289878235,500.0,0.00032284,30]
[322786648,1713289878809,500.0,0.00032284,30]
[322786649,1713289879043,500.0,0.00032284,30]
[322786650,1713289879399,500.0,0.00032284,30]
[322786651,1713289879744,500.0,0.00032284,30]
[322786652,1713289880306,500.0,0.00032284,30]
[322786653,1713289880449,500.0,0.00032284,30]
[322786654,1713289880825,500.0,0.00032284,30]
[322786655,1713289881177,500.0,0.00032284,30]
[322786656,1713289881531,500.0,0.00032284,30]
[322786657,1713289881873,500.0,0.00032284,30]
[322786658,1713289882217,500.0,0.00032284,30]
[322786659,1713289917969,4425.20220114,0.0001539,2]
[322786660,1713289947401,170.94,0.00032284,30]
[322786661,1713289948442,815.207575,0.00028,30]
[322786662,1713289971821,500.0,0.00032284,30]
[322786663,1713289972132,500.0,0.00032284,30]
[322786664,1713289972447,500.0,0.00032284,30]
[322786665,1713289973382,500.0,0.00032284,30]
[322786666,1713289973626,150.0,0.00032284,30]
[322786667,1713289973662,500.0,0.00032284,30]
[322786668,1713289974218,161.97479888,0.00032284,30]
[322786669,1713289976197,500.0,0.00032284,30]
[322786670,1713289976397,500.0,0.00032284,30]
[322786671,1713289976484,500.0,0.00032284,30]
[322786672,1713289976759,500.0,0.00032284,30]
[322786673,1713289976877,500.0,0.00032284,30]
[322786674,1713289976944,500.0,0.00032284,30]
[322786675,1713289977146,500.0,0.00032284,30]
[322786676,1713289977260,500.0,0.00032284,30]
[322786677,1713289977585,500.0,0.00032284,30]
[322786678,1713289977837,500.0,0.00032284,30]
[322786679,1713289977905,489.06968844,0.00032284,30]
[322786680,1713289978095,500.0,0.00032284,30]
[322786681,1713289978285,500.0,0.00032284,30]
[322786682,1713289978529,500.0,0.00032284,30]
[322786683,1713289978632,500.0,0.00032284,30]
[322786684,1713289978831,500.0,0.00032284,30]
[322786685,1713289978877,500.0,0.00032284,30]
[322786686,1713289978923,500.0,0.00032284,30]
[322786687,1713289979528,586.19748007,0.00032284,30]
[322786688,1713289979571,500.0,0.00032284,30]
[322786689,1713289979872,500.0,0.00032284,30]
[322786690,1713289980344,500.0,0.00032284,30]
[322786691,1713289980963,500.0,0.00032284,30]
[322786692,1713289981000,500.0,0.00032284,30]
[322786693,1713289981102,500.0,0.00032284,30]
[322786694,1713289981281,500.0,0.00032284,30]
[322786695,1713289981385,500.0,0.00032284,30]
[322786696,1713289981979,500.0,0.00032284,30]
[322786697,1713289982117,557.72,0.00032284,30]
[322786698,1713289982605,500.0,0.00032284,30]
[322786699,1713289984524,500.0,0.00032284,30]
[322786700,1713289984731,500.0,0.00032284,30]
[322786701,1713289984793,518.88019563,0.00032284,30]